lending/lending_fUSD_20240111
["ID","MTS","AMOUNT","RATE_DAILY","PERIOD"]
[311220556,1704985860066,-464.76,0.00041095,2]
[311220557,1704985860076,-697.14,0.00041095,2]
[311220558,1704985860087,-929.52,0.00041095,2]
[311220559,1704985860097,-1161.9,0.00041095,2]
[311220560,1704985860106,-1394.28,0.00041095,2]
[311220561,1704985860116,-1626.66,0.00041095,2]
[311220562,1704985860125,-1859.04,0.00041095,2]
[311220563,1704985860135,-2091.42,0.00041095,2]
[311220564,1704985860144,-2323.8,0.00041095,2]
[311220565,1704985860153,-2556.18,0.00041095,2]
[311220566,1704985860162,-500.0,0.00041095,2]
[311220567,1704985860172,-3000.0,0.00041095,120]
[311220568,1704985860181,-1000.0,0.00041095,2]
[311220569,1704985860191,-1000.0,0.00041095,2]
[311220570,1704985860201,-1000.0,0.00041095,2]
[311220571,1704985860210,-1000.0,0.00041095,2]
[311220572,1704985860220,-1000.0,0.00041095,2]
[311220573,1704985860233,-1000.0,0.00041095,2]
[311220574,1704985860242,-1000.0,0.00041095,2]
[311220575,1704985860252,-1000.0,0.00041095,2]
[311220576,1704985860262,-1000.0,0.00041095,2]
[311220577,1704985860271,-1000.0,0.00041095,2]
[311220578,1704985860281,-1000.0,0.00041095,2]
[311220579,1704985860291,-264.12,0.00041095,2]
[311220580,1704985860301,-180.0,0.00041096,2]
[311220581,1704985860310,-164.35,0.00041096,2]
[311220582,1704985860320,-3728.37,0.00041096,2]
[311220583,1704985860330,-1694.0,0.000411,2]
[311220584,1704985860340,-481.32142152,0.000411,2]
[311220585,1704985860349,-1276.0,0.000411,30]
[311220586,1704985860359,-500.0,0.00041112,14]
[311220587,1704985860368,-834.0,0.00041129,2]
[311220588,1704985860378,-500.0,0.0004115,2]
[311220589,1704985860387,-800.0,0.00041152,2]
[311220590,1704985860397,-500.0,0.00041205,2]
[311220591,1704985860407,-1297.81403609,0.00041216,5]
[311220592,1704985860416,-6839.50522379,0.00041227,2]
[311220593,1704985860427,-3000.0,0.00041232,120]
[311220594,1704985860437,-500.0,0.00041253,14]
[311220595,1704985860446,-500.11070704,0.0004126,2]
[311220596,1704985860456,-23599.0,0.00041279,30]
[311220597,1704985860466,-371.0,0.00041279,30]
[311220598,1704985860477,-1098.40051442,0.00041369,120]
[311220599,1704985860489,-500.0,0.00041394,14]
[311220600,1704985860499,-679.18470591,0.00041477,3]
[311220601,1704985860510,-4686.7702492,0.00041497,2]
[311220602,1704985860519,-171.51784427,0.000415,4]
[311220603,1704985860528,-11718.93,0.000415,7]
[311220604,1704985860538,-12617.18,0.000415,7]
[311220605,1704985860547,-150.0,0.000415,31]
[311220606,1704985860557,-500.0,0.00041535,14]
[311220607,1704985860566,-153.6883431,0.00041569,7]
[311220608,1704985860575,-163.14,0.00041583,2]
[311220609,1704985860589,-150.0,0.00041593,60]
[311220610,1704985860598,-975.5011,0.00041599,2]
[311220611,1704985860608,-153.84,0.00041603,2]
[311220612,1704985860618,-229.85,0.00041623,2]
[311220613,1704985860629,-337.44,0.00041648,2]
[311220614,1704985860638,-500.0,0.00041676,14]
[311220615,1704985860648,-23599.0,0.00041696,30]
[311220616,1704985860659,-371.0,0.00041696,30]
[311220617,1704985860668,-242.06910364,0.00041696,30]
[311220618,1704985860678,-400.0,0.00041699,120]
[311220619,1704985860687,-449.1664085,0.000417,10]
[311220620,1704985860697,-4160.23,0.000417,7]
[311220621,1704985860707,-672.70815257,0.00041767,7]
[311220622,1704985860717,-666.0,0.0004178,2]
[311220623,1704985860730,-1000.0,0.000418,30]
[311220624,1704985860739,-7205.04186501,0.00041816,16]
[311220625,1704985860749,-672.70815257,0.00041817,7]
[311220626,1704985860759,-500.0,0.00041817,14]
[311220627,1704985860769,-3556.66272799,0.0004186,34]
[311220628,1704985860778,-500.0,0.00041862,7]
[311220629,1704985860788,-500.0,0.00041862,7]
[311220630,1704985860797,-500.0,0.00041862,7]
[311220631,1704985860806,-209.0,0.0004191,2]
[311220632,1704985860815,-210.0,0.0004191,2]
[311220633,1704985860825,-282.576087,0.00041918,14]
[311220634,1704985860835,-309176.59344295,0.0004193,2]
[311220635,1704985860844,-175.54673681,0.0004195,120]
[311220636,1704985860854,-500.0,0.00041958,14]
[311220637,1704985860864,-168.04,0.00041958,2]
[311220638,1704985860874,-350.0,0.00041973,120]
[311220639,1704985860883,-249.34166615,0.00042,7]
[311220640,1704985860893,-1589.58652979,0.00042,40]
[311220641,1704985860902,-500.0,0.00042,20]
[311220642,1704985860912,-7965.77004196,0.00042,10]
[311220643,1704985860923,-500.0,0.00042,20]
[311220644,1704985860933,-500.0,0.00042,30]
[311220645,1704985860943,-505.0,0.00042,30]
[311220646,1704985860952,-500.0,0.00042,4]
[311220647,1704985860961,-500.0,0.00042,4]
[311220648,1704985860971,-500.0,0.00042,4]
[311220649,1704985860985,-500.0,0.00042,4]
[311220650,1704985860994,-437.17575228,0.00042,4]
[311220651,1704985861004,-150.0,0.00042,31]
[311220652,1704985861013,-4000.0,0.00042,90]
[311220653,1704985861023,-2000.0,0.00042,33]
[311220654,1704985861033,-293.79,0.00042,4]
[311220655,1704985861043,-293.79,0.00042,4]
[311220656,1704985861053,-293.79,0.00042,4]
[311220657,1704985861063,-293.79,0.00042,4]
[311220658,1704985861073,-293.79,0.00042,4]
[311220659,1704985861083,-293.79,0.00042,4]
[311220660,1704985861093,-293.79,0.00042,4]
[311220661,1704985861104,-293.79,0.00042,4]
[311220662,1704985861114,-293.79,0.00042,4]
[311220663,1704985861124,-293.79,0.00042,4]
[311220664,1704985861134,-293.79,0.00042,4]
[311220665,1704985861145,-293.79,0.00042,4]
[311220666,1704985861154,-293.79,0.00042,4]
[311220667,1704985861165,-293.79,0.00042,4]
[311220668,1704985861175,-293.79,0.00042,4]
[311220669,1704985861186,-293.79,0.00042,4]
[311220670,1704985861197,-293.79,0.00042,4]
[311220671,1704985861206,-293.79,0.00042,4]
[311220672,1704985861215,-293.79,0.00042,4]
[311220673,1704985861226,-293.79,0.00042,4]
[311220674,1704985861237,-2001.24,0.0004203,2]
[311220675,1704985861246,-500.0,0.00042099,14]
[311220676,1704985861256,-11718.93,0.000421,7]
[311220677,1704985861265,-12617.18,0.000421,7]
[311220678,1704985861274,-1000.0,0.000421,2]
[311220679,1704985861284,-672.70815257,0.00042102,7]
[311220680,1704985861293,-20688.50629717,0.00042113,30]
[311220681,1704985861315,-2910.49370283,0.00042113,30]
[311220682,1704985861326,-371.0,0.00042113,30]
[311220683,1704985861348,-500.0,0.00042135,7]
[311220684,1704985861360,-500.0,0.00042135,7]
[311220685,1704985861370,-165.28,0.00042205,2]
[311220686,1704985861380,-3011.76191805,0.00042222,30]
[311220687,1704985861390,-161.72330619,0.00042231,7]
[311220688,1704985861400,-500.0,0.0004224,14]
[311220689,1704985861409,-204.0,0.00042241,21]
[311220690,1704985861419,-3104.0,0.000423,5]
[311220691,1704985861428,-500.0,0.00042381,14]
[311220692,1704985861438,-2849.0,0.0004239,3]
[311220693,1704985861448,-4160.23,0.000424,7]
[311220694,1704985861457,-500.0,0.00042408,7]
[311220695,1704985861466,-500.0,0.00042408,7]
[311220696,1704985861476,-2788.56,0.00042454,120]
[311220697,1704985861488,-23595.84458723,0.00042461,60]
[311220698,1704985861498,-4686.7702492,0.00042462,2]
[311220699,1704985861508,-167.14187597,0.00042463,4]
[311220700,1704985861517,-3020.94,0.00042464,120]
[311220701,1704985861527,-150.0,0.00042464,3]
[311220702,1704985861537,-150.0,0.00042464,3]
[311220703,1704985861547,-581.06331729,0.00042465,30]
[311220704,1704985861556,-559.93912988,0.00042465,30]
[311220705,1704985861566,-500.0,0.00042465,30]
[311220706,1704985861576,-500.0,0.00042465,30]
[311220707,1704985861589,-500.0,0.00042465,30]
[311220708,1704985861599,-559.91279814,0.00042465,30]
[311220709,1704985861608,-591.573654,0.00042465,30]
[311220710,1704985861617,-205.45308476,0.00042465,30]
[311220711,1704985861639,-294.54691524,0.00042465,30]
[311220712,1704985861649,-500.0,0.00042465,30]
[311220713,1704985861658,-500.0,0.00042465,30]
[311220714,1704985861670,-253.5082876,0.00042465,30]
[311220715,1704985861683,-500.0,0.00042465,30]
[311220716,1704985861692,-500.0,0.00042465,30]
[311220717,1704985861703,-504.8779562,0.00042465,30]
[311220718,1704985861713,-500.0,0.00042465,30]
[311220719,1704985861723,-233.12712886,0.00042465,30]
[311220720,1704985861740,-500.0,0.00042465,30]
[311220721,1704985861750,-500.0,0.00042465,30]
[311220722,1704985861761,-376.23142823,0.00042465,30]
[311220723,1704985861771,-500.0,0.00042465,30]
[311220724,1704985861782,-500.0,0.00042465,30]
[311220725,1704985861791,-500.0,0.00042465,30]
[311220726,1704985861801,-500.0,0.00042465,30]
[311220727,1704985861811,-500.0,0.00042465,30]
[311220728,1704985861822,-157.3270715,0.00042465,30]
[311220729,1704985861832,-500.0,0.00042465,30]
[311220730,1704985861842,-478.762714,0.00042465,30]
[311220731,1704985861856,-21.237286,0.00042465,30]
[311220732,1704985861866,-346.26271405,0.00042465,30]
[311220733,1704985861900,-153.73728595,0.00042465,30]
[311220734,1704985861910,-570.50515033,0.00042465,30]
[311220735,1704985861920,-500.0,0.00042465,30]
[311220736,1704985861930,-201.55824337,0.00042465,30]
[311220737,1704985861939,-573.72461784,0.00042465,30]
[311220738,1704985861950,-421.47470251,0.00042465,30]
[311220739,1704985861962,-78.52529749,0.00042465,30]
[311220740,1704985861972,-500.0,0.00042465,30]
[311220741,1704985861985,-500.0,0.00042465,30]
[311220742,1704985861995,-199.36660251,0.00042465,30]
[311220743,1704985862041,-300.63339749,0.00042465,30]
[311220744,1704985862050,-258.70748216,0.00042465,30]
[311220745,1704985862062,-241.29251784,0.00042465,30]
[311220746,1704985862071,-500.0,0.00042465,30]
[311220747,1704985862081,-500.0,0.00042465,30]
[311220748,1704985862091,-500.0,0.00042465,30]
[311220749,1704985862101,-500.0,0.00042465,30]
[311220750,1704985862111,-500.0,0.00042465,30]
[311220751,1704985862121,-500.0,0.00042465,30]
[311220752,1704985862130,-500.0,0.00042465,30]
[311220753,1704985862141,-500.0,0.00042465,30]
[311220754,1704985862151,-134.29720788,0.00042465,30]
[311220755,1704985862163,-262.41917083,0.00042465,30]
[311220756,1704985862190,-466.78739728,0.00042465,30]
[311220757,1704985862202,-136.49622401,0.00042465,30]
[311220758,1704985862211,-500.0,0.00042465,30]
[311220759,1704985862220,-236.64346956,0.00042465,30]
[311220760,1704985862233,-500.0,0.00042465,30]
[311220761,1704985862243,-500.0,0.00042465,30]
[311220762,1704985862252,-500.0,0.00042465,30]
[311220763,1704985862262,-500.0,0.00042465,30]
[311220764,1704985862270,-500.0,0.00042465,7]
[311220765,1704985862280,-574.72971188,0.00042465,30]
[311220766,1704985862289,-500.0,0.00042465,30]
[311220767,1704985862298,-500.0,0.00042465,30]
[311220768,1704985862307,-250.0,0.00042465,30]
[311220769,1704985862317,-500.0,0.00042465,30]
[311220770,1704985862326,-500.0,0.00042465,30]
[311220771,1704985862336,-500.0,0.00042465,30]
[311220772,1704985862345,-500.0,0.00042465,30]
[311220773,1704985862354,-277.37223774,0.00042465,30]
[311220774,1704985862363,-500.0,0.00042465,30]
[311220775,1704985862372,-23.31712039,0.00042465,30]
[311220776,1704985862723,-476.68287961,0.00042465,30]
[311220777,1704985862734,-500.0,0.00042465,30]
[311220778,1704985862744,-500.0,0.00042465,30]
[311220779,1704985862754,-446.19712039,0.00042465,30]
[311220780,1704985862768,-53.80287961,0.00042465,30]
[311220781,1704985862777,-491.46912039,0.00042465,30]
[311220782,1704985862827,-8.53087961,0.00042465,30]
[311220783,1704985862841,-500.0,0.00042465,30]
[311220784,1704985862851,-500.0,0.00042465,30]
[311220785,1704985862860,-500.0,0.00042465,30]
[311220786,1704985862869,-500.0,0.00042465,30]
[311220787,1704985862879,-500.0,0.00042465,30]
[311220788,1704985862888,-500.0,0.00042465,30]
[311220789,1704985862897,-500.0,0.00042465,30]
[311220790,1704985862906,-529.98482321,0.00042465,30]
[311220791,1704985862916,-500.0,0.00042465,30]
[311220792,1704985862925,-500.0,0.00042465,30]
[311220793,1704985862934,-500.0,0.00042465,30]
[311220794,1704985862944,-500.0,0.00042465,30]
[311220795,1704985862953,-500.0,0.00042465,30]
[311220796,1704985862962,-500.0,0.00042465,30]
[311220797,1704985862971,-509.76223496,0.00042465,30]
[311220798,1704985862981,-500.0,0.00042465,30]
[311220799,1704985862990,-500.0,0.00042465,30]
[311220800,1704985863175,-500.0,0.00042465,30]
[311220801,1704985863185,-500.0,0.00042465,30]
[311220802,1704985863195,-102.74671022,0.00042465,30]
[311220803,1704985863209,-304.26222052,0.00042465,30]
[311220804,1704985863218,-525.58791054,0.00042465,30]
[311220805,1704985863227,-500.0,0.00042465,30]
[311220806,1704985863239,-500.0,0.00042465,30]
[311220807,1704985863249,-500.0,0.00042465,30]
[311220808,1704985863258,-500.0,0.00042465,30]
[311220809,1704985863268,-500.0,0.00042465,30]
[311220810,1704985863277,-500.0,0.00042465,30]
[311220811,1704985863287,-500.0,0.00042465,30]
[311220812,1704985863296,-500.0,0.00042465,30]
[311220813,1704985863305,-500.0,0.00042465,30]
[311220814,1704985863317,-500.0,0.00042465,30]
[311220815,1704985863327,-500.0,0.00042465,30]
[311220816,1704985863337,-500.0,0.00042465,30]
[311220817,1704985863346,-500.0,0.00042465,30]
[311220818,1704985863356,-500.0,0.00042465,30]
[311220819,1704985863366,-500.0,0.00042465,30]
[311220820,1704985863375,-500.0,0.00042465,30]
[311220821,1704985863385,-500.0,0.00042465,30]
[311220822,1704985863394,-500.0,0.00042465,30]
[311220823,1704985863404,-500.0,0.00042465,30]
[311220824,1704985863414,-500.0,0.00042465,30]
[311220825,1704985863424,-500.0,0.00042465,30]
[311220826,1704985863433,-500.0,0.00042465,30]
[311220827,1704985863443,-500.0,0.00042465,30]
[311220828,1704985863453,-500.0,0.00042465,30]
[311220829,1704985863462,-501.43690601,0.00042465,30]
[311220830,1704985863471,-500.0,0.00042465,30]
[311220831,1704985863482,-500.0,0.00042465,30]
[311220832,1704985863492,-500.0,0.00042465,30]
[311220833,1704985863501,-500.0,0.00042465,30]
[311220834,1704985863510,-500.0,0.00042465,30]
[311220835,1704985863519,-500.0,0.00042465,30]
[311220836,1704985863528,-500.0,0.00042465,30]
[311220837,1704985863537,-500.0,0.00042465,30]
[311220838,1704985863546,-500.0,0.00042465,30]
[311220839,1704985863555,-500.0,0.00042465,30]
[311220840,1704985863564,-500.0,0.00042465,30]
[311220841,1704985863573,-500.0,0.00042465,30]
[311220842,1704985863583,-500.0,0.00042465,30]
[311220843,1704985863593,-500.0,0.00042465,30]
[311220844,1704985863602,-500.0,0.00042465,30]
[311220845,1704985863615,-526.37350978,0.00042465,30]
[311220846,1704985863625,-500.0,0.00042465,30]
[311220847,1704985863634,-500.0,0.00042465,30]
[311220848,1704985863644,-500.0,0.00042465,30]
[311220849,1704985863653,-206.11855836,0.00042465,7]
[311220850,1704985863663,-500.0,0.00042465,30]
[311220851,1704985863672,-500.0,0.00042465,30]
[311220852,1704985863681,-500.0,0.00042465,30]
[311220853,1704985863691,-500.0,0.00042465,30]
[311220854,1704985863701,-500.0,0.00042465,30]
[311220855,1704985863710,-500.0,0.00042465,30]
[311220856,1704985863719,-500.0,0.00042465,30]
[311220857,1704985863732,-500.0,0.00042465,30]
[311220858,1704985863743,-249.45118476,0.00042465,30]
[311220859,1704985863753,-500.0,0.00042465,30]
[311220860,1704985863763,-500.0,0.00042465,30]
[311220861,1704985863772,-513.92125424,0.00042465,30]
[311220862,1704985863781,-500.0,0.00042465,30]
[311220863,1704985863791,-500.0,0.00042465,30]
[311220864,1704985863801,-500.0,0.00042465,30]
[311220865,1704985863811,-500.0,0.00042465,30]
[311220866,1704985863821,-500.0,0.00042465,30]
[311220867,1704985863830,-484.98396882,0.00042465,30]
[311220868,1704985863840,-500.0,0.00042465,30]
[311220869,1704985863849,-500.0,0.00042465,30]
[311220870,1704985863859,-500.0,0.00042465,30]
[311220871,1704985863868,-500.0,0.00042465,30]
[311220872,1704985863877,-641.97133176,0.00042465,30]
[311220873,1704985863886,-500.0,0.00042465,30]
[311220874,1704985863895,-500.0,0.00042465,30]
[311220875,1704985863905,-500.0,0.00042465,30]
[311220876,1704985863914,-500.0,0.00042465,30]
[311220877,1704985863923,-500.0,0.00042465,30]
[311220878,1704985863932,-500.0,0.00042465,30]
[311220879,1704985863942,-500.0,0.00042465,30]
[311220880,1704985863951,-500.0,0.00042465,30]
[311220881,1704985863960,-534.7094099,0.00042465,30]
[311220882,1704985863970,-500.0,0.00042465,30]
[311220883,1704985863981,-500.0,0.00042465,30]
[311220884,1704985863992,-500.0,0.00042465,30]
[311220885,1704985864001,-513.05110984,0.00042465,30]
[311220886,1704985864012,-500.0,0.00042465,30]
[311220887,1704985864022,-500.0,0.00042465,30]
[311220888,1704985864031,-500.0,0.00042465,30]
[311220889,1704985864040,-502.43727228,0.00042465,30]
[311220890,1704985864049,-500.0,0.00042465,30]
[311220891,1704985864058,-500.0,0.00042465,30]
[311220892,1704985864067,-269.62162648,0.00042465,30]
[311220893,1704985864076,-501.75060588,0.00042465,30]
[311220894,1704985864085,-500.0,0.00042465,30]
[311220895,1704985864094,-512.02472198,0.00042465,30]
[311220896,1704985864103,-500.0,0.00042465,30]
[311220897,1704985864113,-500.0,0.00042465,30]
[311220898,1704985864122,-507.07447009,0.00042465,30]
[311220899,1704985864131,-500.0,0.00042465,30]
[311220900,1704985864141,-502.36207978,0.00042465,30]
[311220901,1704985864150,-500.0,0.00042465,30]
[311220902,1704985864158,-500.0,0.00042465,30]
[311220903,1704985864167,-200.0,0.00042465,7]
[311220904,1704985864177,-500.0,0.00042465,30]
[311220905,1704985864186,-500.0,0.00042465,30]
[311220906,1704985864195,-500.0,0.00042465,30]
[311220907,1704985864204,-500.0,0.00042465,30]
[311220908,1704985864213,-326.50306657,0.00042465,30]
[311220909,1704985864223,-500.0,0.00042465,30]
[311220910,1704985864234,-500.0,0.00042465,30]
[311220911,1704985864243,-500.0,0.00042465,30]
[311220912,1704985864252,-500.0,0.00042465,30]
[311220913,1704985864262,-500.0,0.00042465,30]
[311220914,1704985864271,-500.0,0.00042465,30]
[311220915,1704985864280,-500.0,0.00042465,30]
[311220916,1704985864289,-500.0,0.00042465,30]
[311220917,1704985864299,-500.0,0.00042465,30]
[311220918,1704985864308,-500.0,0.00042465,30]
[311220919,1704985864317,-500.0,0.00042465,30]
[311220920,1704985864326,-500.0,0.00042465,30]
[311220921,1704985864335,-500.0,0.00042465,30]
[311220922,1704985864345,-500.0,0.00042465,30]
[311220923,1704985864354,-500.0,0.00042465,30]
[311220924,1704985864364,-500.0,0.00042465,30]
[311220925,1704985864373,-500.0,0.00042465,30]
[311220926,1704985864382,-500.0,0.00042465,30]
[311220927,1704985864391,-503.0833164,0.00042465,30]
[311220928,1704985864400,-500.0,0.00042465,30]
[311220929,1704985864409,-500.0,0.00042465,30]
[311220930,1704985864418,-500.0,0.00042465,30]
[311220931,1704985864428,-500.95819876,0.00042465,30]
[311220932,1704985864437,-500.0,0.00042465,30]
[311220933,1704985864447,-500.0,0.00042465,30]
[311220934,1704985864456,-508.21310034,0.00042465,30]
[311220935,1704985864465,-500.0,0.00042465,30]
[311220936,1704985864474,-500.23835312,0.00042465,30]
[311220937,1704985864486,-500.0,0.00042465,30]
[311220938,1704985864495,-500.0,0.00042465,30]
[311220939,1704985864504,-500.0,0.00042465,30]
[311220940,1704985864513,-500.0,0.00042465,30]
[311220941,1704985864522,-319.44345436,0.00042465,30]
[311220942,1704985864531,-500.0,0.00042465,30]
[311220943,1704985864541,-500.0,0.00042465,30]
[311220944,1704985864550,-500.0,0.00042465,30]
[311220945,1704985864560,-500.0,0.00042465,30]
[311220946,1704985864569,-370.24172161,0.00042465,30]
[311220947,1704985864578,-2000.0,0.00042465,30]
[311220948,1704985864592,-500.0,0.00042465,30]
[311220949,1704985864602,-500.0,0.00042465,30]
[311220950,1704985864611,-500.0,0.00042465,30]
[311220951,1704985864620,-500.0,0.00042465,30]
[311220952,1704985864629,-500.0,0.00042465,30]
[311220953,1704985864638,-500.0,0.00042465,30]
[311220954,1704985864648,-500.0,0.00042465,30]
[311220955,1704985864658,-500.0,0.00042465,30]
[311220956,1704985864667,-500.0,0.00042465,30]
[311220957,1704985864677,-500.0,0.00042465,30]
[311220958,1704985864687,-500.0,0.00042465,30]
[311220959,1704985864697,-500.0,0.00042465,30]
[311220960,1704985864707,-500.0,0.00042465,30]
[311220961,1704985864717,-500.0,0.00042465,30]
[311220962,1704985864726,-500.0,0.00042465,30]
[311220963,1704985864738,-500.0,0.00042465,30]
[311220964,1704985864747,-500.0,0.00042465,30]
[311220965,1704985864757,-500.0,0.00042465,30]
[311220966,1704985864766,-500.0,0.00042465,30]
[311220967,1704985864775,-500.0,0.00042465,30]
[311220968,1704985864784,-500.0,0.00042465,30]
[311220969,1704985864794,-500.0,0.00042465,30]
[311220970,1704985864803,-500.0,0.00042465,30]
[311220971,1704985864813,-500.0,0.00042465,30]
[311220972,1704985864822,-500.0,0.00042465,30]
[311220973,1704985864832,-500.0,0.00042465,30]
[311220974,1704985864842,-500.0,0.00042465,30]
[311220975,1704985864851,-500.0,0.00042465,30]
[311220976,1704985864860,-74.55818063,0.00042465,30]
[311220977,1704985864945,-429.82099725,0.00042465,30]
[311220978,1704985864954,-413.17086382,0.00042465,30]
[311220979,1704985864966,-586.82913618,0.00042465,30]
[311220980,1704985864975,-500.0,0.00042465,30]
[311220981,1704985864986,-500.0,0.00042465,7]
[311220982,1704985864996,-500.0,0.00042465,30]
[311220983,1704985865005,-500.0,0.00042465,30]
[311220984,1704985865015,-500.0,0.00042465,30]
[311220985,1704985865025,-500.0,0.00042465,30]
[311220986,1704985865035,-500.0,0.00042465,30]
[311220987,1704985865045,-500.0,0.00042465,30]
[311220988,1704985865054,-500.0,0.00042465,30]
[311220989,1704985865064,-500.0,0.00042465,30]
[311220990,1704985865073,-500.0,0.00042465,30]
[311220991,1704985865083,-1000.0,0.00042465,2]
[311220992,1704985865092,-500.0,0.00042465,30]
[311220993,1704985865102,-500.0,0.00042465,30]
[311220994,1704985865112,-500.0,0.00042465,30]
[311220995,1704985865121,-500.0,0.00042465,30]
[311220996,1704985865131,-500.0,0.00042465,30]
[311220997,1704985865141,-500.0,0.00042465,30]
[311220998,1704985865151,-500.0,0.00042465,30]
[311220999,1704985865161,-500.0,0.00042465,30]
[311221000,1704985865172,-500.0,0.00042465,30]
[311221001,1704985865182,-500.0,0.00042465,30]
[311221002,1704985865192,-500.0,0.00042465,11]
[311221003,1704985865202,-500.0,0.00042465,30]
[311221004,1704985865212,-506.01601451,0.00042465,30]
[311221005,1704985865222,-500.0,0.00042465,30]
[311221006,1704985865234,-500.0,0.00042465,30]
[311221007,1704985865245,-500.0,0.00042465,30]
[311221008,1704985865255,-389.69411125,0.00042465,30]
[311221009,1704985865265,-500.0,0.00042465,30]
[311221010,1704985865275,-508.66995715,0.00042465,30]
[311221011,1704985865285,-500.0,0.00042465,30]
[311221012,1704985865295,-500.0,0.00042465,30]
[311221013,1704985865305,-500.0,0.00042465,30]
[311221014,1704985865315,-500.0,0.00042465,30]
[311221015,1704985865325,-501.88260002,0.00042465,30]
[311221016,1704985865335,-500.0,0.00042465,30]
[311221017,1704985865344,-500.0,0.00042465,30]
[311221018,1704985865355,-500.0,0.00042465,30]
[311221019,1704985865365,-500.0,0.00042465,30]
[311221020,1704985865375,-500.0,0.00042465,30]
[311221021,1704985865385,-500.0,0.00042465,30]
[311221022,1704985865394,-500.0,0.00042465,30]
[311221023,1704985865404,-500.0,0.00042465,30]
[311221024,1704985865414,-500.0,0.00042465,30]
[311221025,1704985865425,-500.0,0.00042465,30]
[311221026,1704985865436,-500.0,0.00042465,30]
[311221027,1704985865446,-500.0,0.00042465,30]
[311221028,1704985865456,-500.0,0.00042465,30]
[311221029,1704985865466,-500.0,0.00042465,30]
[311221030,1704985865475,-500.0,0.00042465,30]
[311221031,1704985865487,-500.0,0.00042465,30]
[311221032,1704985865497,-500.0,0.00042465,30]
[311221033,1704985865506,-500.0,0.00042465,30]
[311221034,1704985865515,-500.0,0.00042465,30]
[311221035,1704985865525,-500.0,0.00042465,30]
[311221036,1704985865534,-500.0,0.00042465,30]
[311221037,1704985865543,-500.0,0.00042465,30]
[311221038,1704985865553,-503.92067349,0.00042465,30]
[311221039,1704985865562,-500.0,0.00042465,30]
[311221040,1704985865572,-500.0,0.00042465,30]
[311221041,1704985865581,-500.0,0.00042465,30]
[311221042,1704985865594,-528.58410657,0.00042465,30]
[311221043,1704985865604,-500.0,0.00042465,30]
[311221044,1704985865614,-500.0,0.00042465,30]
[311221045,1704985865624,-257.38014707,0.00042465,30]
[311221046,1704985865634,-500.0,0.00042465,30]
[311221047,1704985865643,-500.0,0.00042465,30]
[311221048,1704985865654,-500.0,0.00042465,30]
[311221049,1704985865664,-500.0,0.00042465,30]
[311221050,1704985865674,-500.0,0.00042465,10]
[311221051,1704985865684,-500.0,0.00042465,30]
[311221052,1704985865694,-500.0,0.00042465,30]
[311221053,1704985865703,-500.0,0.00042465,30]
[311221054,1704985865713,-500.0,0.00042465,30]
[311221055,1704985865723,-500.0,0.00042465,30]